bitfinex-derivatives/quotes_SOLF0:USTF0_20240918
["timestamp","ask_amount","ask_price","bid_price","bid_amount"]
[1726669525589,3.86155651,127.96,127.91,13.20784516]
[1726669525782,9.6,127.92,127.91,13.20784516]
[1726669525984,15.02,127.93,127.91,13.20784516]
[1726669526183,15.02,127.97,127.91,13.20784516]
[1726669526690,18.927,127.97,127.91,13.20784516]
[1726669527188,15.02,127.98,127.92,3.9084]
[1726669527393,15.02,127.98,127.91,13.20784516]
[1726669527595,15.02,127.97,127.91,16.17754516]
[1726669527888,3.82010168,127.96,127.91,16.17754516]
[1726669528096,3.96385296,127.99,127.91,31.19754516]
[1726669528393,3.9063,128.0,127.93,3.9079]
[1726669528594,3.88954294,128.0,127.92,18.0583]
[1726669528795,3.98497265,128.0,127.91,13.20784516]
[1726669528990,15.02,127.96,127.91,13.20784516]
[1726669529589,3.96971954,128.0,127.91,13.20784516]
[1726669529793,337.0,128.02,127.91,13.20784516]
[1726669529794,15.02,127.98,127.91,13.20784516]
[1726669530091,18.95686669,127.98,127.91,13.20784516]
[1726669530492,15.02,128.0,127.92,15.02]
[1726669531297,3.9067,127.98,127.92,18.9284]
[1726669531598,18.91853837,128.0,127.92,15.02]
[1726669532092,3.9066,127.98,127.92,18.9282]
[1726669532305,18.91853837,128.0,127.92,18.9282]
[1726669532495,15.02,127.97,127.91,13.20784516]
[1726669532694,3.89853837,128.0,127.91,13.20784516]
[1726669532695,15.02,127.98,127.91,13.20784516]
[1726669532898,18.91853837,128.0,127.91,28.22784516]
[1726669533098,3.9069,127.98,127.92,3.9082]
[1726669533496,18.91853837,128.0,127.91,28.22784516]
[1726669533898,3.9065,127.99,127.93,3.9081]
[1726669534405,3.9065,127.99,127.94,3.088]
[1726669534597,18.91853837,128.0,127.94,3.088]
[1726669534792,18.91853837,128.0,127.94,6.0424]
[1726669535092,15.02,128.03,127.95,15.02]
[1726669535398,15.02,128.02,127.94,6.0424]
[1726669535600,3.9069,127.98,127.94,6.0424]
[1726669535805,3.87593867,127.99,127.94,6.0424]
[1726669536204,7.78243867,127.99,127.94,6.0424]
[1726669536503,3.87593867,127.99,127.94,6.0424]
[1726669536695,3.9066,127.98,127.94,6.0424]
[1726669537097,7.87405932,127.98,127.94,6.0424]
[1726669537304,3.907,127.97,127.94,6.0424]
[1726669537600,3.96785043,127.99,127.94,6.0424]
[1726669537803,15.02,128.02,127.94,9.9502]
[1726669537997,3.9064,127.99,127.94,9.9502]
[1726669538198,15.02,128.02,127.94,21.0624]
[1726669538499,3.9058,128.01,127.95,3.9073]
[1726669538699,3.9058,128.01,127.94,21.0624]
[1726669539191,3.9058,128.01,127.96,3.907]
[1726669539500,3.9055,128.02,127.94,21.0624]
[1726669539703,15.02,128.03,127.95,3.0341]
[1726669540301,3.9059,128.01,127.96,3.907]
[1726669540694,15.02,128.03,127.95,6.9415]
[1726669540695,3.9062,128.0,127.95,6.9415]
[1726669541095,15.02,128.03,127.95,3.0341]
[1726669541492,160.37841051,128.06,127.95,3.0341]
[1726669541694,3.9058,128.01,127.97,3.9068]
[1726669541908,160.37841051,128.06,127.98,15.02]
[1726669541909,18.99841051,128.06,127.98,15.02]
[1726669542092,3.97841051,128.06,128.0,15.02]
[1726669542300,3.9047,128.05,128.01,5.6875]
[1726669543204,15.02,128.09,128.01,5.6875]
[1726669543705,15.02,128.07,128.01,5.6875]
[1726669544299,3.92868314,128.06,128.01,5.6875]
[1726669544804,15.02,128.06,128.01,5.6875]
[1726669545003,18.91705307,128.06,128.01,5.6875]
[1726669545208,3.9054,128.02,128.01,5.6875]
[1726669546503,18.91705307,128.06,128.01,5.6875]
[1726669547601,3.9054,128.02,128.01,5.6875]
[1726669548009,18.91705307,128.06,128.01,5.6875]
[1726669548204,3.9054,128.02,128.01,5.6875]
[1726669548702,15.02,128.04,127.95,3.0341]
[1726669548901,15.02,128.02,127.96,2.8684]
[1726669549912,3.9058,128.01,127.96,6.7754]
[1726669550602,3.906,128.0,127.96,2.8684]
[1726669550801,15.02,128.02,127.96,2.8684]
[1726669552108,3.9069,127.97,127.96,2.8684]
[1726669552706,3.9073,127.96,127.94,2.8082]
[1726669553206,3.907,127.97,127.94,2.8082]
[1726669553403,3.92038683,127.99,127.94,2.8082]
[1726669553806,3.9071,127.97,127.94,2.8082]
[1726669554108,15.02,128.0,127.94,2.8082]
[1726669554304,15.02,128.02,127.94,2.8082]
[1726669554499,15.02,128.02,127.94,17.8282]
[1726669554703,3.9062,128.0,127.96,3.9072]
[1726669555205,3.9056,128.02,127.96,15.02]
[1726669555408,352.02,128.04,127.96,15.02]
[1726669555604,18.91705307,128.06,127.97,2.8157]
[1726669555806,3.9053,128.03,127.99,3.9063]
[1726669556107,3.928821,128.03,127.97,2.8157]
[1726669556410,15.02,128.04,127.97,2.8157]
[1726669557104,3.906,128.0,127.97,2.8157]
[1726669557304,15.02,128.04,127.97,2.8157]
[1726669557705,3.9057,128.01,127.97,6.7224]
[1726669558405,3.9055,128.02,127.98,3.9066]
[1726669558709,15.02,128.04,127.97,2.8157]
[1726669559099,3.9056,128.02,127.98,3.9064]
[1726669559509,3.9056,128.02,127.99,2.8637]
[1726669559906,3.9052,128.03,127.99,2.8637]
[1726669560213,15.02,128.05,127.99,2.8637]
[1726669560398,15.02,128.03,127.99,2.8637]
[1726669561108,3.9055,128.02,127.99,2.8637]
[1726669561807,15.02,128.06,127.99,2.8637]
[1726669562005,15.02,128.06,128.01,3.9055]
[1726669562210,15.02,128.08,128.0,3.0097]
[1726669562399,156.4,128.09,128.01,15.02]
[1726669562605,15.02,128.1,128.04,3.9047]
[1726669562806,15.02,128.11,128.05,2.8489]
[1726669563002,15.02,128.11,128.05,5.7577]
[1726669563209,15.02,128.11,128.06,6.9137]
[1726669563812,15.02,128.11,128.06,3.0097]
[1726669564010,3.9032,128.1,128.06,3.0097]
[1726669564206,15.02,128.11,128.06,3.0097]
[1726669565107,3.9034,128.09,128.06,3.0097]
[1726669565711,3.9031,128.1,128.06,6.9139]
[1726669566003,27.9959236,128.13,128.06,3.0097]
[1726669566208,3.9037,128.08,128.06,3.0097]
[1726669566618,3.86740115,128.09,128.06,3.0097]
[1726669566806,3.96077512,128.1,128.06,3.0097]
[1726669567012,24.0,128.13,128.06,3.0097]
[1726669567207,27.88185654,128.13,128.06,3.0097]
[1726669567811,24.0,128.15,128.09,3.9031]
[1726669568013,3.96834701,128.14,128.06,3.0097]
[1726669568219,180.4,128.17,128.06,27.0097]
[1726669569313,180.4,128.17,128.06,3.0097]
[1726669569314,24.0,128.15,128.06,3.0097]
[1726669569613,3.903,128.1,128.06,3.0097]
[1726669570119,3.903,128.1,128.06,6.9137]
[1726669570824,3.9028,128.11,128.07,3.9039]
[1726669571114,3.9028,128.11,128.06,3.0097]
[1726669571115,27.89370847,128.15,128.06,3.0097]
[1726669571319,337.0,128.16,128.09,3.903]
[1726669571622,180.4,128.17,128.09,3.903]
[1726669572024,3.902,128.14,128.09,3.903]
[1726669572321,180.4,128.17,128.09,3.903]
[1726669572826,180.4,128.17,128.07,3.9037]
[1726669573123,24.0,128.15,128.06,3.0097]
[1726669573316,27.98694303,128.15,128.06,6.9136]
[1726669573509,3.98694303,128.15,128.06,6.9136]
[1726669573716,24.0,128.14,128.06,6.9136]
[1726669573920,3.9031,128.1,128.06,6.9136]
[1726669574715,3.9028,128.11,128.07,3.9038]
[1726669574913,3.8731734,128.14,128.06,3.0097]
[1726669575118,361.0,128.16,128.06,3.0097]
[1726669575316,24.0,128.16,128.08,3.9036]
[1726669575719,3.9016,128.15,128.11,3.9025]
[1726669575911,337.0,128.18,128.08,24.0]
[1726669576620,3.9013,128.16,128.12,3.9023]
[1726669576925,3.9013,128.16,128.08,24.0]
[1726669577220,3.9013,128.16,128.12,3.9022]
[1726669577821,3.9014,128.15,128.12,3.9022]
[1726669578118,3.9019,128.14,128.08,24.0]
[1726669578622,3.9019,128.14,128.11,3.9026]
[1726669578921,3.9016,128.15,128.08,24.0]
[1726669579323,3.9016,128.15,128.12,3.9022]
[1726669580929,3.9018,128.14,128.12,3.9022]
[1726669581534,3.9021,128.13,128.11,6.898]
[1726669581825,3.9021,128.13,128.11,2.9954]
[1726669582024,493.3,128.21,128.11,2.9954]
[1726669582218,517.3,128.21,128.11,2.9954]
[1726669582419,180.3,128.21,128.11,2.9954]
[1726669582620,3.9013,128.16,128.11,2.9954]
[1726669582819,180.3,128.21,128.11,2.9954]
[1726669583521,3.9017,128.15,128.11,6.8979]
[1726669584126,3.9017,128.15,128.12,3.9023]
[1726669584324,3.9012,128.16,128.12,3.9023]
[1726669586635,3.9012,128.16,128.13,3.902]
[1726669587029,3.9012,128.16,128.11,2.9954]
[1726669587233,3.9012,128.16,128.13,3.902]
[1726669587431,361.0,128.21,128.11,2.9954]
[1726669587432,3.9009,128.17,128.11,26.9954]
[1726669587634,3.9009,128.17,128.12,5.7777]
[1726669588233,3.9009,128.17,128.13,3.9019]
[1726669588432,3.9013,128.16,128.12,5.7777]
[1726669589144,3.9013,128.16,128.12,9.6799]
[1726669589928,3.9014,128.15,128.12,9.6799]
[1726669591231,18.83341147,128.22,128.13,15.0]
[1726669591435,337.0,128.23,128.15,15.0]
[1726669591629,340.89331458,128.23,128.15,15.0]
[1726669591931,340.89331458,128.23,128.12,5.7777]
[1726669591932,340.89331458,128.23,128.17,15.0]
[1726669592337,340.89331458,128.23,128.17,18.9007]
[1726669592537,340.89331458,128.23,128.17,15.0]
[1726669592936,3.9,128.2,128.17,15.0]
[1726669593233,337.0,128.23,128.17,15.0]
[1726669593432,3.8998,128.21,128.17,18.9006]
[1726669593631,3.8998,128.21,128.17,15.0]
[1726669593834,3.80855715,128.24,128.17,15.0]
[1726669594032,3.8995,128.22,128.18,3.9004]
[1726669594241,15.0,128.28,128.2,15.0]
[1726669594535,18.91083697,128.28,128.23,9.0]
[1726669595232,3.91083697,128.28,128.23,9.0]
[1726669595434,337.0,128.3,128.23,9.0]
[1726669595736,171.22,128.31,128.23,24.0]
[1726669595737,3.8972,128.29,128.23,24.0]
[1726669596040,171.22,128.31,128.23,24.0]
[1726669596236,3.8977,128.28,128.23,27.8988]
[1726669596432,171.22,128.31,128.23,24.0]
[1726669596735,156.22,128.31,128.25,15.0]
[1726669596936,3.8969,128.3,128.25,18.8982]
[1726669597237,229.89956263,128.36,128.29,9.0]
[1726669597439,3.8965,128.32,128.31,9.0]
[1726669597940,3.8957,128.34,128.31,9.0]
[1726669598235,15.0,128.4,128.32,15.0]
[1726669598533,160.04189168,128.39,128.32,15.0]
[1726669598938,337.0,128.43,128.35,15.0]
[1726669599239,352.0,128.44,128.38,9.0]
[1726669599437,15.0,128.42,128.38,9.0]
[1726669599739,3.8941,128.39,128.38,9.0]
[1726669601837,7.81643312,128.39,128.38,9.0]
[1726669602035,3.8941,128.39,128.38,9.0]
[1726669602635,7.84840442,128.39,128.38,9.0]
[1726669606540,31.80840442,128.39,128.38,9.0]
[1726669607442,3.8961,128.33,128.3,23.96]
[1726669608043,27.91430442,128.39,128.3,23.96]
[1726669609049,27.91430442,128.39,128.3,29.6274]
[1726669609443,27.91430442,128.39,128.3,33.5242]
[1726669609756,3.8955,128.35,128.3,33.5242]
[1726669610250,3.8957,128.34,128.3,33.5242]
[1726669610439,27.91430442,128.39,128.3,29.6274]
[1726669610950,3.8958,128.34,128.3,29.6274]
[1726669611751,27.91430442,128.39,128.3,5.6674]
[1726669612250,23.96,128.38,128.28,27.0469]
[1726669612442,23.96,128.38,128.28,3.0869]
[1726669612640,23.96,128.35,128.26,23.96]
[1726669613241,3.897,128.3,128.26,27.858]
[1726669613641,337.0,128.39,128.26,23.96]
[1726669613845,337.0,128.38,128.29,23.96]
[1726669614347,337.0,128.38,128.3,9.8214]
[1726669614348,3.8955,128.35,128.3,9.8214]
[1726669614744,337.0,128.38,128.3,5.9248]
[1726669615044,3.8951,128.36,128.32,23.96]
[1726669615552,3.8951,128.36,128.32,27.8561]
[1726669615746,3.83745417,128.4,128.32,23.96]
[1726669615947,156.02,128.41,128.32,23.96]
[1726669616138,156.02,128.41,128.33,3.8958]
[1726669616139,3.8949,128.37,128.33,3.8958]
[1726669616545,3.8949,128.37,128.32,23.96]
[1726669616847,3.8951,128.36,128.32,27.8561]
[1726669617042,179.98,128.41,128.32,23.96]
[1726669617241,23.96,128.41,128.32,23.96]
[1726669617445,3.8952,128.36,128.32,23.96]
[1726669617844,3.87615036,128.38,128.32,23.96]
[1726669618048,3.87615036,128.38,128.31,3.0058]
[1726669618049,337.0,128.43,128.34,23.96]
[1726669618247,23.96,128.45,128.34,23.96]
[1726669618545,3.8937,128.41,128.36,3.895]
[1726669618751,3.8937,128.41,128.36,9.823]
[1726669618946,3.8937,128.41,128.36,5.928]
[1726669619155,183.8194506,128.47,128.37,23.96]
[1726669619344,159.8594506,128.47,128.37,26.9053]
[1726669619747,159.8594506,128.47,128.38,3.8942]
[1726669620354,159.8594506,128.47,128.37,30.7999]
[1726669620554,159.8594506,128.47,128.39,23.96]
[1726669620756,3.8924,128.45,128.4,3.8938]
[1726669620951,156.0,128.47,128.4,3.8938]
[1726669621258,3.8926,128.45,128.4,3.8938]
[1726669621458,159.91907694,128.47,128.39,27.8541]
[1726669621849,3.8928,128.44,128.39,27.8541]
[1726669622349,159.91907694,128.47,128.37,2.9453]
[1726669622559,159.91907694,128.47,128.37,26.9053]
[1726669623148,159.91907694,128.47,128.37,30.8]
[1726669623556,3.91907694,128.47,128.37,30.8]
[1726669623761,3.8938,128.41,128.37,26.9053]
[1726669623952,23.96,128.48,128.36,9.8229]
[1726669623953,23.96,128.46,128.36,5.928]
[1726669624153,23.96,128.44,128.36,5.928]
[1726669624350,344.7836,128.47,128.36,5.928]
[1726669624559,23.96,128.43,128.36,5.928]
[1726669624762,3.8943,128.39,128.36,5.928]
[1726669625059,23.96,128.43,128.36,5.928]
[1726669625254,3.8947,128.37,128.36,5.928]
[1726669625463,3.8947,128.37,128.33,23.96]
[1726669625648,3.92180556,128.41,128.33,23.96]
[1726669625854,23.96,128.43,128.33,27.8559]
[1726669626051,23.96,128.43,128.33,23.96]
[1726669626363,23.96,128.43,128.32,5.9253]
[1726669626864,3.8951,128.36,128.32,5.9253]
[1726669627360,3.8954,128.35,128.32,5.9253]
[1726669627862,3.8953,128.36,128.32,5.9253]
[1726669628261,3.81538941,128.39,128.32,5.9253]
[1726669628461,3.8952,128.36,128.32,5.9253]
[1726669628669,3.8952,128.36,128.32,9.8216]
[1726669628960,3.8954,128.35,128.32,5.9253]
[1726669629363,3.89066602,128.39,128.32,5.9253]
[1726669629557,3.8952,128.36,128.32,5.9253]
[1726669629866,3.85167749,128.39,128.32,5.9253]
[1726669630051,337.0,128.42,128.32,5.9253]
[1726669630662,337.0,128.42,128.32,9.8213]
[1726669631462,337.0,128.42,128.35,23.96]
[1726669631659,3.894,128.4,128.35,23.96]
[1726669631861,3.894,128.4,128.35,27.8552]
[1726669632162,337.0,128.42,128.35,27.8552]
[1726669632465,337.0,128.42,128.35,23.96]
[1726669632761,337.0,128.42,128.33,23.96]
[1726669632956,3.92812597,128.41,128.33,27.8557]
[1726669633358,3.8946,128.38,128.33,27.8557]
[1726669633559,3.8946,128.38,128.34,3.8956]
[1726669633754,3.92812597,128.41,128.34,3.8956]
[1726669633966,337.0,128.42,128.35,23.96]
[1726669634464,3.894,128.4,128.35,23.96]
[1726669634661,337.0,128.42,128.35,23.96]
[1726669634662,337.0,128.42,128.36,3.8949]
[1726669635266,337.0,128.42,128.37,27.8546]
[1726669635466,337.0,128.42,128.37,23.96]
[1726669635660,3.8934,128.42,128.38,5.8357]
[1726669635863,159.81663653,128.48,128.39,27.8541]
[1726669636165,159.81663653,128.48,128.39,26.784]
[1726669636366,159.81663653,128.48,128.41,23.96]
[1726669637563,3.8928,128.44,128.41,23.96]
[1726669638257,3.8922,128.46,128.41,27.8535]
[1726669638461,3.8922,128.46,128.41,23.96]
[1726669638658,3.891,128.5,128.43,27.8527]
[1726669638863,337.0,128.52,128.43,27.8527]
[1726669639372,3.8916,128.48,128.43,27.8527]
[1726669639675,337.0,128.52,128.44,5.962]
[1726669639868,3.8912,128.49,128.45,23.96]
[1726669640367,3.8912,128.49,128.45,27.8523]
[1726669640572,3.8909,128.5,128.45,27.8523]
[1726669641165,3.8912,128.49,128.45,26.7611]
[1726669641372,3.80562699,128.52,128.45,26.7611]
[1726669641665,3.8916,128.48,128.45,26.7611]
[1726669643577,3.8913,128.49,128.45,26.7611]
[1726669643872,337.0,128.55,128.47,23.96]
[1726669644071,3.891,128.5,128.47,23.96]
[1726669644665,3.8905,128.51,128.47,23.96]
[1726669645273,3.891,128.5,128.47,23.96]
[1726669645472,360.96,128.57,128.47,23.96]
[1726669645669,23.96,128.53,128.24,7.808]
[1726669645869,23.96,128.53,128.19,7.8004]
[1726669645870,23.96,128.49,128.36,27.0161]
[1726669646070,337.0,128.48,128.36,27.0161]
[1726669646270,3.893,128.43,128.36,30.9111]
[1726669646570,3.89732803,128.46,128.36,27.0161]
[1726669646770,23.96,128.49,128.36,27.0161]
[1726669646974,23.96,128.49,128.38,23.96]
[1726669647478,3.8928,128.44,128.38,27.8542]
[1726669647881,3.8929,128.44,128.38,23.96]
[1726669648177,23.96,128.49,128.38,23.96]
[1726669648378,3.8926,128.45,128.39,3.8941]
[1726669648678,23.96,128.49,128.38,23.96]
[1726669648871,3.8927,128.44,128.38,27.8542]
[1726669649181,3.8927,128.44,128.38,23.96]
[1726669649374,3.98418017,128.46,128.38,23.96]
[1726669649575,23.96,128.47,128.36,27.0161]
[1726669649878,23.96,128.45,128.34,23.96]
[1726669650081,27.86235349,128.45,128.34,26.8289]
[1726669650871,27.86235349,128.45,128.35,2.8184]
[1726669651073,3.894,128.4,128.35,2.8184]
[1726669651771,3.894,128.4,128.35,6.7135]
[1726669651975,3.894,128.4,128.35,2.8184]
[1726669652172,3.0263,128.44,128.35,2.8184]
[1726669652581,3.0263,128.44,128.36,23.96]
[1726669653078,3.8935,128.42,128.36,23.96]
[1726669653282,23.96,128.47,128.36,23.96]
[1726669653581,23.96,128.47,128.39,3.8941]
[1726669653778,3.83700989,128.46,128.39,3.8941]
[1726669654570,23.96,128.47,128.38,27.8543]
[1726669654777,23.96,128.47,128.38,23.96]
[1726669654981,3.8927,128.44,128.38,23.96]
[1726669655675,3.8924,128.45,128.38,23.96]
[1726669655874,26.9863,128.49,128.4,23.96]
[1726669656077,3.0263,128.49,128.41,2.9506]
[1726669656278,3.0263,128.49,128.41,9.8475]
[1726669656481,3.0263,128.49,128.41,5.9542]
[1726669656687,158.6677,128.5,128.42,23.96]
[1726669656878,3.8919,128.47,128.43,3.8927]
[1726669658083,343.64413419,128.53,128.44,3.8926]
[1726669658479,3.8917,128.48,128.43,3.8928]
[1726669659590,3.8918,128.47,128.43,3.8928]
[1726669660478,3.8918,128.47,128.44,3.8925]
[1726669661188,3.892,128.46,128.43,3.8928]
[1726669662480,3.8924,128.45,128.43,3.8928]
[1726669662686,17.94828067,128.52,128.42,23.96]
[1726669662886,6.64413419,128.53,128.42,23.96]
[1726669663086,6.64413419,128.53,128.44,23.96]
[1726669663686,3.8911,128.49,128.46,3.8919]
[1726669664090,3.8911,128.49,128.46,18.8419]
[1726669664294,3.8915,128.48,128.46,14.95]
[1726669665900,14.95,128.52,128.44,14.95]
[1726669666095,14.95,128.51,128.44,14.95]
[1726669666399,17.7598,128.51,128.44,14.95]
[1726669667301,3.8919,128.47,128.44,18.8424]
[1726669667698,3.8916,128.48,128.45,3.8923]
[1726669667899,3.8916,128.48,128.45,18.8423]
[1726669670295,3.8916,128.48,128.46,3.892]
[1726669671297,6.8055439,128.53,128.45,14.95]
[1726669672210,6.8055439,128.53,128.45,18.8422]
[1726669672512,6.8055439,128.53,128.45,14.95]
[1726669672806,21.7555439,128.53,128.45,14.95]
[1726669673213,3.8913,128.49,128.45,18.8423]
[1726669673411,21.7555439,128.53,128.45,14.95]
[1726669673606,3.8915,128.48,128.44,18.8424]
[1726669674505,3.8915,128.48,128.45,3.8923]
[1726669674901,3.8913,128.49,128.45,3.8923]
[1726669675103,21.7555439,128.53,128.45,18.8423]
[1726669675403,6.8055439,128.53,128.47,14.95]
[1726669675713,24.74904302,128.53,128.47,14.95]
[1726669675910,6.8055439,128.53,128.47,14.95]
[1726669677317,3.8906,128.51,128.47,14.95]
[1726669677609,6.8055439,128.53,128.48,14.95]
[1726669677610,3.9917439,128.53,128.48,14.95]
[1726669678017,3.8901,128.53,128.49,3.8909]
[1726669678409,7.76375839,128.53,128.49,3.8909]
[1726669678720,3.8904,128.52,128.48,18.8413]
[1726669679517,7.79091848,128.53,128.49,3.891]
[1726669679712,14.95,128.56,128.48,14.95]
[1726669679915,18.75940247,128.56,128.48,14.95]
[1726669680108,3.80940247,128.56,128.48,14.95]
[1726669680415,342.708,128.57,128.5,14.95]
[1726669680616,3.8898,128.54,128.5,14.95]
[1726669680925,346.65379017,128.57,128.48,14.95]
[1726669681118,3.8898,128.54,128.49,3.8908]
[1726669681524,3.8898,128.54,128.5,14.95]
[1726669681912,346.65379017,128.57,128.5,14.95]
[1726669681913,3.8894,128.55,128.5,18.8406]
[1726669682220,340.94579017,128.57,128.5,14.95]
[1726669682615,3.8893,128.55,128.51,3.8903]
[1726669682819,3.94579017,128.57,128.52,14.95]
[1726669683018,337.0,128.6,128.54,14.95]
[1726669683219,170.75,128.62,128.54,14.95]
[1726669683415,17.94685647,128.61,128.55,14.95]
[1726669683714,14.95,128.64,128.57,14.95]
[1726669683916,17.95051068,128.64,128.57,14.95]
[1726669684317,17.95051068,128.64,128.59,14.95]
[1726669684526,17.95051068,128.64,128.61,14.95]
[1726669684717,3.87037757,128.67,128.61,14.95]
[1726669684923,3.886,128.66,128.61,14.95]
[1726669685220,17.95778317,128.68,128.62,14.95]
[1726669685421,3.8851,128.69,128.64,14.95]
[1726669685612,3.90112884,128.71,128.64,14.95]
[1726669685813,2.7876,128.72,128.64,14.95]
[1726669686214,2.7876,128.72,128.64,23.88]
[1726669686518,3.93071233,128.73,128.64,23.88]
[1726669687722,342.5974,128.77,128.61,30.8445]
[1726669687920,23.88,128.72,128.61,30.8445]
[1726669688218,3.886,128.66,128.61,26.9572]
[1726669688418,27.74482072,128.72,128.61,26.9572]
[1726669688724,3.8856,128.68,128.61,30.8444]
[1726669689022,337.0,128.71,128.61,26.9572]
[1726669689416,337.0,128.71,128.62,3.8869]
[1726669689723,337.0,128.71,128.61,26.9572]
[1726669689924,3.8863,128.65,128.61,26.9572]
[1726669690426,3.8866,128.64,128.61,3.0772]
[1726669690623,23.88,128.7,128.61,3.0772]
[1726669690920,3.8875,128.61,128.6,2.9109]
[1726669691119,23.88,128.66,128.55,23.88]
[1726669691522,3.8883,128.59,128.55,23.88]
[1726669691721,23.88,128.65,128.54,8.5013]
[1726669691916,337.0,128.64,128.54,8.5013]
[1726669692624,337.0,128.64,128.55,23.88]
[1726669693426,3.8876,128.61,128.56,3.8887]
[1726669693822,337.0,128.64,128.57,23.88]
[1726669694019,3.8873,128.62,128.57,23.88]
[1726669694517,3.80318942,128.68,128.6,23.88]
[1726669694717,5.6668,128.69,128.6,23.88]
[1726669694922,5.6668,128.69,128.61,2.806]
[1726669695123,337.0,128.73,128.64,23.88]
[1726669695321,3.81596077,128.72,128.64,23.88]
[1726669696130,3.8856,128.68,128.64,23.88]
[1726669696322,3.81596077,128.72,128.64,23.88]
[1726669696719,360.88,128.73,128.64,23.88]
[1726669697228,364.72809831,128.73,128.64,23.88]
[1726669697526,3.8855,128.68,128.64,23.88]
[1726669697930,340.84809831,128.73,128.64,23.88]
[1726669698730,3.8854,128.69,128.64,23.88]
[1726669699129,340.84809831,128.73,128.62,3.072]
[1726669699130,337.0,128.75,128.66,23.88]
[1726669699724,3.8844,128.72,128.68,23.88]
[1726669700027,337.0,128.75,128.68,23.88]
[1726669700220,337.0,128.75,128.7,23.88]
[1726669700733,3.8838,128.74,128.7,23.88]
[1726669701034,3.8838,128.74,128.69,9.6776]
[1726669701234,3.8831,128.76,128.71,23.88]
[1726669701423,155.64,128.79,128.71,23.88]
[1726669701832,155.64,128.79,128.69,32.5235]
[1726669702032,155.64,128.79,128.69,8.6435]
[1726669702033,23.88,128.78,128.69,8.6435]
[1726669702233,3.8839,128.73,128.69,8.6435]
[1726669702436,179.52,128.79,128.69,32.5235]
[1726669703029,155.64,128.79,128.69,32.5235]
[1726669703228,155.64,128.79,128.7,3.8845]
[1726669703425,337.0,128.8,128.72,23.88]
[1726669703631,339.8065,128.82,128.72,23.88]
[1726669703829,3.8826,128.78,128.72,27.7639]
[1726669704026,3.8826,128.78,128.72,23.88]
[1726669704434,343.77719112,128.82,128.72,23.88]
[1726669705032,3.883,128.76,128.72,23.88]
[1726669705235,23.88,128.81,128.69,32.5235]
[1726669705933,3.8827,128.77,128.72,3.884]
[1726669706634,3.8824,128.78,128.73,3.8837]
[1726669706835,6.77719112,128.82,128.74,23.88]
[1726669707028,3.8819,128.8,128.75,3.8832]
[1726669707228,2.8065,128.82,128.74,23.88]
[1726669707428,337.0,128.84,128.74,23.88]
[1726669707635,3.8822,128.79,128.74,23.88]
[1726669708240,26.9213,128.85,128.74,27.7634]
[1726669708241,3.8825,128.78,128.74,27.7634]
[1726669708426,3.0413,128.85,128.74,23.88]
[1726669708631,23.88,128.83,128.74,23.88]